Workbook

Sheet page 10
E3: TODAY
D4: Approximate | G4: Gross Rent Per | H4: 2026 Rent at Close | K4: 2027 Rent w Apartments
A5: Suite | B5: Use | C5: Term ends | D5: UNIT SF | E5: Rent+nnn | F5: If no Vacancy | G5: Square foot | H5: with 2 apartments | J5: 2027 Proposed Use | K5: and with Canabis
A6: A | B6: Electrician | C6: .April 2029 | D6: 1329 | E6: 2800 | F6: 2300 | G6: =H6/D6 -> 2.106847254 | H6: 2800 | J6: Electrician | K6: 2365.6
A7: A-1 | B7: Apartment -1 bedroom | C7: mo to mo | D7: 550 | E7: 2200 | F7: 1000 | G7: 3.818181818 | H7: 2100 | J7: Apartment -1 bedroom | K7: 2100
A8: A-2 | B8: Studio Apartment | C8: mo to mo | D8: =1786-1329 -> 457 | F8: 1000 | G8: 3.938730853 | H8: 1800 | J8: Studio Apartment | K8: 1800
A9: B | B9: Contractor/ Remodeler | C9: mo to mo | D9: 1200 | E9: 2365.6 | F9: 2365.6 | G9: 1.971333333 | H9: 2365.6 | J9: B/C new Canabis 2290 SF | K9: 6855
A10: C | B10: Appliance shop/office | C10: mo to mo | D10: 1190 | E10: 1850 | F10: 1650 | G10: 1.554621849 | H10: 1850 | J10: combined with B above
A11: D | B11: Pizzeria ** | C11: .October 2030 | D11: 1342 | E11: 3882.23 | F11: 3882.23 | G11: 2.892868852 | H11: 3882.23 | J11: Pizzeria | K11: 3882.23
A12: E | B12: Hair Salon | C12: .Jan 1, 2031 | D12: 810 | E12: 1859.28 | F12: 1859.28 | G12: 2.295407407 | H12: 1859.28 | J12: Hair Salon | K12: 1859.28
A13: F | B13: Window Store | C13: .September 2028 | D13: 1250 | E13: 3332.53 | F13: 3332.53 | G13: 2.666024 | H13: 3332.53 | J13: Window Store | K13: 3332.53
C14: Approximate Leased SF | D14: =SUM(D6:D13) -> 8128 | E14: =SUM(E6:E13) -> 18289.64 | F14: =SUM(F6:F13) -> 17389.64 | H14: =SUM(H6:H13) -> 19989.64 | K14: =SUM(K6:K13) -> 22194.64
F15: without discount on
A16: **Suite D | B16: includes a % rent clause | E16: =E14*12 -> 219475.68 | F16: =F14*12 -> 208675.68 | G16: Gross Annual Rents | H16: =H14*12 -> 239875.68 | J16: Gross Annual Rents | K16: =K14*12 -> 266335.68
E17: =30000/12 -> 2500 | F17: =#REF!*12 ->  | H17: =70000/12 -> 5833.333333 | K17: =105000/12 -> 8750 | M17: 70k div 2 | N17: =70000/12 -> 5833.333333
E18: 1250 | H18: =H17/2 -> 2916.666667 | K18: =K17/2 -> 4375 | M18: half of above | N18: =N17/2 -> 2916.666667
E19: 0.5 | F19: =SUM(#REF!) ->  | H19: =7207+4840 -> 12047 | K19: =42000/12 -> 3500 | M19: Monthly debt | N19: =7207+4840 -> 12047
H20: =H19*12 -> 144564 | J20: Debt | M20: Annual debt | N20: =N19*12 -> 144564 | O20: Debt
A21: Month to | B21: Month suites are Lessor preference | G21: Expenses | H21: -73000 | J21: Expenses | K21: -73000
B22: Average rent per SF 2026 | C22: =H14/D14 -> 2.459355315 | E22: 73k | H22: =H16+H21 -> 166875.68 | K22: =K16+K21 -> 193335.68
B23: Average rent per SF 2027 | C23: =K14/D14 -> 2.730639764 | E23: =E16 -> 219475.68 | F23: 208675 | G23: Cap Rate at $2.9M | H23: =H22/2900000 -> 0.05754333793 | J23: Cap Rate at $2.9M | K23: =K22/2900000 -> 0.06666747586
E24: -73000 | F24: -73000
E25: =SUM(E23:E24) -> 146475.68 | F25: =SUM(F23:F24) -> 135675
E26: -86500 | F26: -86500
E27: =SUM(E25:E26) -> 59975.68 | F27: =SUM(F25:F26) -> 49175 | H27: =SUM(H25:H26) -> 0
C28: less first loan | E28: =-4850*12 -> -58200 | F28: -58200 | H28: -58200
E29: =SUM(E27:E28) -> 1775.68 | F29: =SUM(F27:F28) -> -9025 | H29: =SUM(H27:H28) -> -58200
C30: less 2nd

Sheet top of page 9
C5: PAGE 9 top section
C7: Income summary | D7: Annualized Rent | E7: Anticipated 2027 Rent
C8: Rent and Reimbursements | D8: 239875.68 | E8: 265135.68
C9: Less Expenses | D9: =-D29 -> -73061.46 | E9: =D9 -> -73061.46
C10: Net Operating Income | D10: =SUM(D8:D9) -> 166814.22 | E10: =SUM(E8:E9) -> 192074.22
C12: Cap Rate at $2,988,000 | D12: =D10/2988000 -> 0.05582805221 | E12: =E10/2988000 -> 0.06428186747
C13: Cap Rate at $2,900,000 | D13: =D10/2900000 -> 0.05752214483 | E13: =E10/2900000 -> 0.06623248966
C14: Cap Rate at $2,800,000 | D14: =D10/2800000 -> 0.05957650714 | E14: 0.07
C18: Expense Summary | D18: Annual Cost | E18: Per SF Annuaily
C19: Estimated Property Tax | D19: 27000 | E19: =D19/8402 -> 3.21352059
C20: Water and Sewer | D20: 7684.52 | E20: 0.9146060462
C21: Trash | D21: 6410.75 | E21: 0.7630028565
C22: PG&E | D22: 4644.16 | E22: 0.5527445846
C23: Landscape | D23: 2400 | E23: 0.2856462747
C24: Alarms & Fire Monitoring | D24: 3172.61 | E24: 0.3776017615
C25: Maintenance and Repairs | D25: 7500 | E25: 0.8926446084
C26: Insurance | D26: 4249.42 | E26: 0.5057629136
C27: Management @ 5%
C28: Management | D28: =200000*0.05 -> 10000 | E28: =D28/8402 -> 1.190192811
C29: Total Reimbursed Expenses | D29: =SUM(D19:D28) -> 73061.46 | E29: =SUM(E19:E28) -> 8.695722447
D31: Per SF NNN Est | E31: 0.72
